bitfinex/quotes_SOLUSD_20250821
["timestamp","ask_amount","ask_price","bid_price","bid_amount"]
[1755788521986,7.18599774,185.33,185.31,79.8]
[1755788522163,7.18599774,185.32,185.27,87.01599774]
[1755788522481,7.18599774,185.31,185.27,79.83]
[1755788522662,7.18599774,185.3,185.27,79.83]
[1755788523480,7.18599774,185.31,185.27,80.55]
[1755788523784,33.18599774,185.36,185.3,7.18599774]
[1755788524087,7.18599774,185.36,185.31,7.90599774]
[1755788524380,7.18599774,185.36,185.32,7.90599774]
[1755788525081,7.18599774,185.36,185.32,0.72]
[1755788525257,7.18599774,185.36,185.31,7.18599774]
[1755788525568,7.18599774,185.36,185.31,7.90599774]
[1755788525768,7.18599774,185.36,185.32,0.72]
[1755788526672,7.18599774,185.36,185.31,7.18599774]
[1755788526878,7.18599774,185.35,185.3,129.94599774]
[1755788527079,7.18599774,185.35,185.31,0.72]
[1755788527683,7.18599774,185.36,185.3,122.76]
[1755788527874,7.18599774,185.35,185.3,129.94599774]
[1755788528075,7.18599774,185.35,185.3,130.66599774]
[1755788528574,7.18599774,185.35,185.3,129.94599774]
[1755788528774,7.18599774,185.35,185.31,0.72]
[1755788529368,0.78,185.37,185.31,80.52]
[1755788529567,7.18599774,185.36,185.31,80.52]
[1755788529788,7.18599774,185.35,185.31,80.52]
[1755788531573,7.24599774,185.36,185.32,0.72]
[1755788531882,7.18599774,185.34,185.32,0.72]
[1755788532235,0.06,185.36,185.32,0.72]
[1755788532375,7.18599774,185.34,185.32,0.72]
[1755788532691,0.06,185.36,185.33,7.90599774]
[1755788532994,0.06,185.36,185.35,7.18599774]
[1755788533588,0.06,185.36,185.35,7.90599774]
[1755788533773,0.06,185.36,185.35,88.24551756]
[1755788533973,0.06,185.36,185.35,87.70599774]
[1755788534863,0.06,185.36,185.35,113.70599774]
[1755788536701,0.06,185.36,185.35,106.52]
[1755788536904,0.06,185.36,185.35,156.64599774]
[1755788542225,0.06,185.36,185.35,156.62599774]
[1755788544198,0.06,185.39,185.38,79.68]
[1755788544402,0.06,185.39,185.38,129.78599774]
[1755788545203,0.74,185.39,185.38,79.68]
[1755788545405,0.06,185.39,185.38,122.6]
[1755788545724,0.06,185.39,185.38,130.50599774]
[1755788546021,0.06,185.39,185.38,122.6]
[1755788547021,0.06,185.39,185.38,129.78599774]
[1755788547210,0.06,185.39,185.38,130.50599774]
[1755788547725,0.06,185.39,185.38,129.78599774]
[1755788547926,0.06,185.39,185.38,130.50599774]
[1755788548328,0.06,185.39,185.38,127.72816135]
[1755788549325,0.06,185.39,185.38,122.6]
[1755788549820,0.06,185.39,185.38,127.00816135]
[1755788550823,0.06,185.39,185.38,79.68]
[1755788551205,0.06,185.39,185.38,122.58]
[1755788551498,4.46816135,185.39,185.36,79.68]
[1755788551721,4.40816135,185.38,185.37,42.9]
[1755788552022,5.08816135,185.38,185.37,42.9]
[1755788552604,0.68,185.38,185.37,42.9]
[1755788552806,5.08816135,185.38,185.37,42.9]
[1755788553203,5.08816135,185.38,185.34,79.68]
[1755788553403,4.40816135,185.35,185.28,80.43]
[1755788553636,4.40816135,185.31,185.29,42.9]
[1755788553840,0.06,185.39,185.3,5.12816135]
[1755788554009,0.06,185.39,185.31,61.62375536]
[1755788554211,0.06,185.39,185.35,4.40816135]
[1755788554408,5.14816135,185.39,185.35,79.68]
[1755788554634,4.40816135,185.37,185.36,42.9]
[1755788555014,5.08816135,185.37,185.36,42.9]
[1755788558218,0.68,185.37,185.36,42.9]
[1755788558422,5.08816135,185.37,185.36,42.9]
[1755788558844,5.08816135,185.37,185.35,79.68]
[1755788559047,5.08816135,185.36,185.35,79.68]
[1755788559349,13.59559401,185.35,185.28,79.71]
[1755788559518,7.54644334,185.34,185.29,42.9]
[1755788559721,7.54644334,185.34,185.28,0.03]
[1755788559722,4.40816135,185.3,185.28,0.03]
[1755788560030,21.97610339,185.29,185.28,0.03]
[1755788560234,26.22975171,185.29,185.28,0.03]
[1755788560426,8.66090313,185.29,185.28,0.03]
[1755788561039,5.08816135,185.29,185.28,0.03]
[1755788561547,12.6343246,185.29,185.28,0.03]
[1755788561842,8.66268987,185.29,185.28,0.03]
[1755788562144,12.63421682,185.29,185.28,0.03]
[1755788562348,29.02137918,185.29,185.28,0.03]
[1755788562559,13.59559401,185.28,185.27,0.03]
[1755788562728,7.1997297,185.27,185.24,0.03]
[1755788562925,15.42578517,185.27,185.24,0.03]
[1755788563139,20.88977987,185.27,185.24,0.03]
[1755788563538,20.8874772,185.27,185.24,0.03]
[1755788563737,16.91825292,185.27,185.24,0.03]
[1755788565448,16.920357,185.31,185.24,0.03]
[1755788565633,7.1997297,185.27,185.24,0.75]
[1755788565834,7.1997297,185.27,185.25,0.72]
[1755788566039,26.0,185.31,185.26,0.75]
[1755788566040,7.1997297,185.28,185.26,0.75]
[1755788566242,26.0,185.29,185.26,0.75]
[1755788566436,7.1997297,185.3,185.27,0.72]
[1755788566733,7.1997297,185.31,185.28,0.68]
[1755788567271,7.1997297,185.31,185.29,0.68]
[1755788567743,7.1997297,185.31,185.26,86.9097297]
[1755788568046,7.1997297,185.32,185.27,7.8797297]
[1755788568248,7.1997297,185.32,185.28,0.68]
[1755788568455,7.1997297,185.31,185.29,0.68]
[1755788569229,7.1997297,185.3,185.26,79.71]
[1755788569430,7.1997297,185.27,185.26,79.71]
[1755788570630,7.1997297,185.27,185.26,0.03]
[1755788572156,7.9097297,185.27,185.26,0.03]
[1755788573036,21.50532371,185.27,185.26,0.03]
[1755788574862,26.0,185.28,185.26,0.03]
[1755788575169,7.1997297,185.27,185.26,0.03]
[1755788576653,7.9097297,185.27,185.26,0.03]
[1755788579042,21.50532371,185.27,185.26,0.03]
[1755788580568,39.59559401,185.25,185.24,0.03]
[1755788580782,43.63,185.3,185.24,0.03]
[1755788581078,7.1997297,185.26,185.24,0.03]
[1755788581267,7.1997297,185.25,185.24,0.03]
[1755788581752,26.0,185.28,185.24,0.71]
[1755788581954,7.1997297,185.25,185.24,0.03]
[1755788582445,4.4165891,185.25,185.24,0.71]
[1755788582645,4.4165891,185.25,185.24,0.03]
[1755788582946,26.0,185.28,185.24,0.71]
[1755788583153,4.4165891,185.27,185.24,0.71]
[1755788583466,4.4165891,185.27,185.25,0.68]
[1755788583635,4.4165891,185.27,185.26,0.68]
[1755788584058,4.4165891,185.29,185.26,0.68]
[1755788584246,4.4765891,185.3,185.26,0.68]
[1755788584469,0.06,185.3,185.29,7.19371751]
[1755788584762,0.06,185.3,185.29,7.87371751]
[1755788586044,0.06,185.3,185.29,70.32595137]
[1755788586266,0.06,185.3,185.29,80.32595137]
[1755788586575,0.06,185.3,185.29,64.92900605]
[1755788587351,0.06,185.3,185.29,50.77371751]
[1755788587978,0.06,185.3,185.29,43.58]
[1755788588282,0.06,185.3,185.27,0.68]
[1755788588451,0.06,185.3,185.28,0.68]
[1755788589466,7.25371751,185.3,185.26,43.58]
[1755788589649,7.25371751,185.3,185.26,0.68]
[1755788589850,7.19371751,185.27,185.26,42.9]
[1755788590661,7.19371751,185.27,185.24,0.03]
[1755788590873,7.19371751,185.25,185.24,0.03]
[1755788591179,26.0,185.29,185.24,0.03]
[1755788591476,33.19371751,185.25,185.24,0.03]
[1755788592323,33.90371751,185.25,185.24,0.03]
[1755788592669,47.49931152,185.25,185.24,0.03]
[1755788592870,36.94741208,185.25,185.24,0.03]
[1755788593067,13.59559401,185.22,185.2,0.03]
[1755788593257,24.3453334,185.21,185.2,0.03]
[1755788593467,26.0,185.18,185.14,0.03]
[1755788593689,46.78931152,185.15,185.14,0.03]
[1755788593865,50.34476824,185.15,185.14,0.03]
[1755788594057,43.86105073,185.15,185.14,0.03]
[1755788594261,40.30559401,185.15,185.14,0.03]
[1755788594462,51.05471685,185.15,185.14,0.03]
[1755788594770,58.24843436,185.15,185.14,0.03]
[1755788594983,13.59559401,185.14,185.09,0.1]
[1755788595164,14.38743502,185.13,185.09,0.1]
[1755788595358,18.65479481,185.13,185.09,0.1]
[1755788595684,15.09743502,185.13,185.09,0.1]
[1755788596211,17.26457602,185.13,185.09,0.1]
[1755788596500,22.95645252,185.13,185.09,0.1]
[1755788596709,13.59559401,185.12,185.07,0.1]
[1755788596869,14.38743502,185.08,185.03,0.03]
[1755788597200,14.38743502,185.08,185.0,0.03]
[1755788597201,53.98302903,185.04,185.0,0.03]
[1755788597411,20.78931152,185.01,185.0,0.03]
[1755788597607,13.59559401,185.0,184.98,0.03]
[1755788597770,20.78931152,184.99,184.98,0.03]
[1755788598106,21.43931152,184.99,184.98,0.03]
[1755788598409,24.98423106,184.99,184.98,0.03]
[1755788598570,21.43931152,184.99,184.98,0.03]
[1755788598967,29.84020838,184.99,184.98,0.03]
[1755788599171,21.43931152,184.99,184.98,0.03]
[1755788599984,21.43931152,184.99,184.93,0.1]
[1755788599985,13.59559401,184.94,184.93,0.1]
[1755788600400,20.78931152,184.94,184.93,0.1]
[1755788601176,7.19371751,184.94,184.93,0.1]
[1755788602499,26.0,184.94,184.93,0.1]
[1755788602690,33.19371751,184.94,184.93,0.1]
[1755788603274,33.19371751,184.94,184.93,0.79]
[1755788603481,42.94,184.99,184.93,0.79]
[1755788603685,7.19371751,184.95,184.93,0.79]
[1755788603889,13.59559401,184.98,184.93,0.79]
[1755788604090,7.19371751,184.94,184.93,0.1]
[1755788604833,7.19371751,184.97,184.93,0.79]
[1755788604986,7.19371751,184.95,184.94,0.69]
[1755788605597,68.94,184.99,184.94,0.69]
[1755788605803,7.19371751,184.96,184.94,0.69]
[1755788606022,7.19371751,184.98,184.95,0.69]
[1755788606230,7.19371751,184.96,184.95,0.69]
[1755788606389,45.00474101,185.01,184.96,0.69]
[1755788606721,26.0,185.01,184.97,0.69]
[1755788606916,26.0,185.01,184.94,0.69]
[1755788607224,26.0,185.01,184.93,0.1]
[1755788607225,26.0,184.97,184.93,0.1]
[1755788607899,7.19371751,184.94,184.93,0.1]
[1755788608646,26.0,184.97,184.93,0.79]
[1755788608927,7.19371751,184.96,184.93,0.79]
[1755788609101,7.19371751,184.95,184.94,0.69]
[1755788610084,7.19371751,184.95,184.93,0.1]
[1755788610325,26.0,184.97,184.93,0.1]
[1755788610499,26.0,184.97,184.94,0.69]
[1755788610698,7.19371751,184.96,184.93,0.1]
[1755788610942,7.19371751,184.94,184.93,0.79]
[1755788611157,7.19371751,184.94,184.93,0.1]
[1755788611514,26.0,184.96,184.93,0.79]
[1755788611720,26.0,184.97,184.93,0.79]
[1755788611952,7.19371751,184.99,184.94,7.19371751]
[1755788612120,7.19371751,184.97,184.94,0.69]
[1755788612315,26.0,184.99,184.94,0.69]
[1755788612515,26.0,184.99,184.93,0.1]
[1755788612752,7.19371751,184.94,184.93,0.1]
[1755788613431,7.19371751,184.97,184.93,0.79]
[1755788613631,7.19371751,184.97,184.94,0.69]
[1755788613820,26.0,184.98,184.95,0.69]
[1755788614024,7.19371751,184.97,184.95,0.69]
[1755788614258,7.19371751,184.97,184.93,7.29371751]
[1755788614555,7.19371751,184.97,184.94,0.69]
[1755788614760,26.0,184.98,184.95,0.69]
[1755788615058,0.06,184.97,184.96,7.88371751]
[1755788615256,0.06,184.97,184.96,0.69]
[1755788615460,0.06,184.97,184.93,0.1]
[1755788615762,0.06,184.97,184.96,33.88371751]
[1755788615949,0.06,184.97,184.96,7.88371751]
[1755788616129,0.06,184.97,184.96,0.69]
[1755788616331,0.06,184.97,184.96,7.88371751]
[1755788616632,7.25371751,184.97,184.93,0.79]
[1755788616837,7.19371751,184.95,184.93,0.1]
[1755788617052,0.71,184.97,184.93,0.1]
[1755788617053,7.19371751,184.94,184.93,0.1]
[1755788617425,7.84371751,184.94,184.93,0.1]
[1755788618329,21.43931152,184.94,184.93,0.1]
[1755788619778,64.47931152,184.94,184.93,0.1]
[1755788620079,64.49931152,184.94,184.93,0.1]
[1755788620666,39.59559401,184.9,184.89,0.03]
[1755788620983,46.78931152,184.9,184.89,0.03]
[1755788621193,40.24559401,184.9,184.89,0.03]
[1755788621372,47.43931152,184.9,184.89,0.03]
[1755788621570,90.49931152,184.9,184.89,0.03]
[1755788622444,95.90764034,184.9,184.89,0.03]
[1755788622594,83.30559401,184.9,184.77,0.69]
[1755788622758,7.19371751,184.81,184.77,0.69]
[1755788623102,7.19371751,184.81,184.78,0.69]
[1755788623393,7.19371751,184.79,184.78,0.69]
[1755788623993,7.19371751,184.79,184.75,0.69]
[1755788624167,7.19371751,184.77,184.76,0.69]
[1755788624503,7.19371751,184.82,184.76,7.88371751]
[1755788624660,7.19371751,184.82,184.77,7.19371751]
[1755788625080,7.19371751,184.82,184.78,0.69]
[1755788625394,7.19371751,184.82,184.72,23.59559401]
[1755788625395,7.19371751,184.79,184.69,10.0]
[1755788625566,7.19371751,184.77,184.73,33.19371751]
[1755788625893,7.19371751,184.82,184.76,7.19371751]
[1755788626075,7.19371751,184.8,184.77,0.69]
[1755788626280,7.19371751,184.82,184.77,7.88371751]
[1755788626466,7.19371751,184.82,184.77,7.19371751]
[1755788626666,7.19371751,184.82,184.78,0.69]
[1755788627197,7.19371751,184.81,184.78,0.69]
[1755788627367,7.19371751,184.8,184.79,0.67]
[1755788627990,7.19371751,184.82,184.79,0.67]
[1755788628197,16.276483,184.86,184.81,7.19371751]
[1755788628398,7.19371751,184.86,184.81,7.19371751]
[1755788628697,7.19371751,184.84,184.82,0.67]
[1755788629001,7.19371751,184.83,184.82,0.67]
[1755788629403,7.19371751,184.83,184.79,0.67]
[1755788629690,7.19371751,184.8,184.76,0.67]
[1755788630002,7.19371751,184.78,184.77,0.67]
[1755788630421,7.19371751,184.78,184.75,0.67]
[1755788630721,26.7,184.83,184.74,0.1]
[1755788630891,7.19371751,184.77,184.74,0.1]
[1755788631284,7.19371751,184.77,184.75,0.67]
[1755788631480,40.29559401,184.83,184.75,0.67]
[1755788631481,7.19371751,184.76,184.75,0.67]
[1755788631685,7.19371751,184.76,184.74,0.1]
[1755788631891,0.7,184.81,184.74,0.77]
[1755788632089,7.19371751,184.76,184.74,0.77]
[1755788632494,7.19371751,184.75,184.74,0.77]
[1755788632899,7.19371751,184.75,184.74,0.1]
[1755788633102,2.170551,184.82,184.74,0.77]
[1755788633307,7.19371751,184.77,184.74,0.77]
[1755788633608,7.19371751,184.76,184.74,0.1]
[1755788633818,7.19371751,184.75,184.74,0.1]
[1755788634308,7.19371751,184.76,184.74,0.77]
[1755788634621,7.19371751,184.77,184.75,0.67]
[1755788634921,7.19371751,184.76,184.74,0.1]
[1755788635406,7.19371751,184.76,184.74,0.77]
[1755788635780,7.19371751,184.75,184.74,0.1]
[1755788636595,26.7,184.79,184.74,0.1]
[1755788636596,7.19371751,184.76,184.74,0.1]
[1755788636988,7.19371751,184.75,184.74,0.1]
[1755788639614,21.48931152,184.75,184.74,0.1]
[1755788639909,25.43350104,184.75,184.74,0.1]
[1755788640110,27.60496212,184.75,184.74,0.1]
[1755788641019,11.13799211,184.75,184.74,0.77]
[1755788641314,3.9442746,184.75,184.74,0.77]
[1755788641515,7.19371751,184.76,184.74,0.1]
[1755788641716,7.19371751,184.77,184.74,0.77]
[1755788642101,7.19371751,184.75,184.74,0.1]
[1755788642692,11.84866246,184.75,184.74,0.1]
[1755788643198,11.14866246,184.75,184.74,0.1]
[1755788643596,3.95494495,184.75,184.74,0.1]
[1755788643795,7.19371751,184.75,184.74,0.1]
[1755788644002,11.84825825,184.75,184.74,0.1]
[1755788644285,11.84825825,184.75,184.73,0.03]
[1755788644286,39.59559401,184.74,184.73,0.03]
[1755788644492,51.44385226,184.74,184.73,0.03]
[1755788644700,37.14825825,184.74,184.73,0.03]
[1755788645287,51.44385226,184.74,184.73,0.03]
[1755788645489,26.0,184.7,184.69,0.03]
[1755788645709,57.93756977,184.7,184.69,0.03]
[1755788645909,51.44385226,184.7,184.69,0.03]
[1755788646503,50.74385226,184.7,184.69,0.03]
[1755788646720,33.19371751,184.7,184.69,0.03]
[1755788647824,47.48931152,184.7,184.69,0.03]
[1755788648002,58.63317198,184.7,184.69,0.03]
[1755788648200,58.63268373,184.7,184.61,0.67]
[1755788648403,7.19371751,184.62,184.58,0.67]
[1755788648600,7.19371751,184.64,184.58,0.67]
[1755788648796,7.19371751,184.64,184.59,7.19371751]
[1755788648999,26.0,184.65,184.6,0.67]
[1755788649232,10.02486988,184.77,184.73,0.03]
[1755788649403,0.7,184.79,184.73,7.22371751]
[1755788649604,7.19371751,184.78,184.73,0.7]
[1755788649914,0.7,184.79,184.73,0.7]
[1755788649915,7.19371751,184.77,184.73,0.7]
[1755788650114,7.19371751,184.78,184.74,0.67]
[1755788650295,26.0,184.78,184.74,0.67]
[1755788650499,7.19371751,184.76,184.73,0.03]
[1755788650712,7.19371751,184.75,184.73,0.03]
[1755788651331,7.19371751,184.75,184.73,26.03]
[1755788651531,7.19371751,184.74,184.73,0.03]
[1755788652322,7.19371751,184.76,184.73,0.7]
[1755788652702,7.19371751,184.74,184.73,0.03]
[1755788653024,20.78931152,184.74,184.73,0.03]
[1755788653199,0.7,184.77,184.73,0.03]
[1755788653527,26.0,184.77,184.73,0.7]
[1755788653700,7.19371751,184.76,184.74,0.67]
[1755788653903,7.19371751,184.75,184.73,0.03]
[1755788654099,7.19371751,184.74,184.73,0.03]
[1755788654314,7.89371751,184.74,184.73,0.03]
[1755788654827,13.59559401,184.75,184.73,0.03]
[1755788655012,7.19371751,184.74,184.73,0.03]
[1755788655218,7.89371751,184.74,184.73,0.03]
[1755788655516,26.0,184.76,184.73,0.03]
[1755788655715,13.59559401,184.78,184.73,0.03]
[1755788656034,43.7,184.82,184.73,0.03]
[1755788656035,7.19371751,184.74,184.73,0.03]
[1755788656241,33.19371751,184.74,184.73,0.03]
[1755788656738,33.90371751,184.74,184.73,0.03]
[1755788656901,47.49931152,184.74,184.73,0.03]
[1755788657521,46.78931152,184.74,184.73,0.03]
[1755788657724,33.19371751,184.74,184.73,0.03]
[1755788658103,7.19371751,184.74,184.73,0.03]
[1755788658722,7.19371751,184.74,184.73,0.71]
[1755788659039,7.19371751,184.74,184.73,0.03]
[1755788660217,21.49931152,184.74,184.73,0.03]
[1755788661932,20.78931152,184.74,184.73,0.03]
[1755788662135,21.49931152,184.74,184.73,0.03]
[1755788662444,7.19371751,184.66,184.65,0.71]
[1755788662622,7.19371751,184.66,184.65,0.03]
[1755788662933,7.19371751,184.66,184.65,0.71]
[1755788663135,7.19371751,184.66,184.65,0.03]
[1755788663443,7.19371751,184.66,184.65,0.71]
[1755788663645,7.19371751,184.66,184.65,0.03]
[1755788663869,20.78931152,184.66,184.65,0.03]
[1755788664316,7.19371751,184.66,184.65,0.03]
[1755788665756,33.19371751,184.66,184.65,0.03]
[1755788666312,33.90371751,184.66,184.65,0.03]
[1755788667130,33.19371751,184.66,184.65,0.03]
[1755788667447,2.89146055,184.74,184.65,0.71]
[1755788667668,7.19371751,184.68,184.65,0.71]
[1755788667881,7.19371751,184.68,184.65,0.03]
[1755788668174,7.19371751,184.68,184.66,0.68]
[1755788668475,7.19371751,184.71,184.66,7.87371751]
[1755788668646,0.06,184.74,184.67,7.19371751]
[1755788668647,7.19371751,184.72,184.67,7.19371751]
[1755788668834,0.06,184.74,184.68,0.68]
[1755788669042,7.19371751,184.72,184.68,0.68]
[1755788669243,0.06,184.74,184.69,7.19371751]
[1755788669554,7.19371751,184.73,184.7,0.68]
[1755788669759,7.19371751,184.73,184.71,0.68]
[1755788670583,7.19371751,184.73,184.65,0.03]
[1755788670584,7.19371751,184.72,184.67,0.68]
[1755788670735,7.19371751,184.68,184.66,0.68]
[1755788670940,7.19371751,184.68,184.67,0.68]
[1755788672565,13.65559401,184.74,184.67,0.68]
[1755788672566,7.19371751,184.7,184.67,0.68]
[1755788672775,0.06,184.74,184.67,0.68]
[1755788672976,0.06,184.74,184.67,7.87371751]
[1755788673276,7.25371751,184.74,184.69,7.19371751]
[1755788673479,7.25371751,184.74,184.7,0.68]
[1755788673644,7.19371751,184.73,184.7,0.68]
[1755788673840,0.06,184.74,184.71,7.19371751]
[1755788674148,0.06,184.76,184.73,7.19371751]
[1755788674341,0.06,184.76,184.74,7.19371751]
[1755788674542,0.06,184.76,184.75,0.68]
[1755788675367,7.25371751,184.76,184.72,0.68]
[1755788675553,7.25371751,184.76,184.7,50.87371751]
[1755788675554,7.19371751,184.75,184.7,50.87371751]
[1755788675760,7.19371751,184.74,184.73,0.68]
[1755788675958,7.19371751,184.74,184.69,46.78931152]
[1755788675959,7.19371751,184.74,184.71,0.68]
[1755788676160,7.19371751,184.72,184.68,0.68]
[1755788676381,7.19371751,184.7,184.65,7.22371751]
[1755788676582,7.19371751,184.7,184.69,0.68]
[1755788676789,7.19371751,184.7,184.65,0.71]
[1755788676988,7.19371751,184.66,184.65,0.71]
[1755788677298,7.19371751,184.67,184.65,0.71]
[1755788677481,26.0,184.73,184.66,0.68]
[1755788677988,7.19371751,184.69,184.66,0.68]
[1755788678369,7.19371751,184.67,184.66,0.68]
[1755788678778,7.19371751,184.67,184.65,0.03]
[1755788678975,7.19371751,184.66,184.65,0.03]
[1755788681866,0.71,184.69,184.65,0.03]
[1755788682191,7.19371751,184.66,184.65,0.03]
[1755788683293,7.90371751,184.66,184.65,0.03]
[1755788684709,21.49931152,184.66,184.65,0.03]
[1755788686511,47.49931152,184.66,184.65,0.03]
[1755788687084,21.49931152,184.66,184.65,0.03]
[1755788687285,13.59559401,184.65,184.63,0.03]
[1755788687599,20.78931152,184.64,184.63,0.03]
[1755788687908,47.50931152,184.64,184.63,0.03]
[1755788688290,13.59559401,184.63,184.55,0.1]
[1755788688601,7.19371751,184.56,184.55,0.1]
[1755788689017,7.91371751,184.56,184.55,0.1]
[1755788689187,7.19371751,184.58,184.55,0.1]
[1755788689515,7.19371751,184.56,184.55,0.1]
[1755788690311,7.91371751,184.56,184.55,0.1]
[1755788690685,21.50931152,184.56,184.55,0.1]
[1755788690904,21.50931152,184.56,184.49,0.71]
[1755788691104,7.19371751,184.5,184.47,0.71]
[1755788691432,7.19371751,184.48,184.44,0.71]
[1755788691592,7.19371751,184.47,184.45,0.71]
[1755788691914,7.19371751,184.46,184.45,0.71]
[1755788692103,7.19371751,184.46,184.4,43.78]
[1755788692316,7.19371751,184.44,184.4,50.97371751]
[1755788692493,7.19371751,184.43,184.39,39.06]
[1755788692701,26.72,184.49,184.4,0.71]
[1755788692899,7.19371751,184.43,184.4,0.71]
[1755788693222,7.19371751,184.44,184.4,0.71]
[1755788693408,26.0,184.49,184.4,7.90371751]
[1755788693610,26.0,184.49,184.41,0.71]
[1755788693805,7.19371751,184.45,184.41,0.71]
[1755788694017,7.19371751,184.44,184.41,0.71]
[1755788694212,7.19371751,184.47,184.38,0.71]
[1755788694413,7.19371751,184.47,184.41,0.71]
[1755788694726,7.19371751,184.42,184.38,0.71]
[1755788694906,40.31559401,184.46,184.32,73.78304401]
[1755788694907,40.31559401,184.46,184.35,7.19371751]
[1755788695106,7.19371751,184.4,184.36,0.71]
[1755788695417,26.72,184.46,184.36,0.71]
[1755788696005,7.19371751,184.4,184.36,0.71]
[1755788696421,7.19371751,184.4,184.37,0.71]
[1755788696602,7.19371751,184.4,184.38,0.71]
[1755788696802,7.19371751,184.4,184.35,33.19371751]
[1755788697008,7.19371751,184.39,184.36,0.71]
[1755788697202,0.72,184.44,184.36,0.71]
[1755788697528,7.19371751,184.4,184.36,0.71]
[1755788697732,7.19371751,184.4,184.37,0.71]
[1755788697903,7.19371751,184.4,184.38,0.71]
[1755788698229,7.19371751,184.4,184.39,0.71]
[1755788698832,0.72,184.43,184.35,26.71]
[1755788699002,7.19371751,184.4,184.36,0.71]
[1755788699443,26.0,184.45,184.36,6.13409796]
[1755788699607,26.0,184.45,184.4,7.19371751]
[1755788699608,7.19371751,184.45,184.4,7.19371751]
[1755788699805,7.19371751,184.44,184.35,31.42441093]
[1755788700032,26.0,184.46,184.38,7.90371751]
[1755788700215,2.82249761,184.51,184.4,7.19371751]
[1755788700216,3.54249761,184.51,184.4,7.19371751]
[1755788700417,7.19371751,184.48,184.43,7.19371751]
[1755788700737,7.19371751,184.46,184.42,26.0]
[1755788700914,7.19371751,184.45,184.42,26.0]
[1755788701114,7.19371751,184.44,184.4,7.19371751]
[1755788701352,0.23,184.52,184.43,7.19371751]
[1755788701634,7.19371751,184.46,184.43,0.71]
[1755788702129,2.82220043,184.54,184.39,0.71]
[1755788702130,26.23,184.49,184.39,0.71]
[1755788702329,7.19371751,184.45,184.43,0.71]
[1755788702540,26.0,184.5,184.43,0.71]
[1755788702736,7.19371751,184.44,184.39,7.90371751]
[1755788703246,7.19371751,184.43,184.39,0.71]
[1755788703414,0.23,184.46,184.39,0.71]
[1755788703617,7.19371751,184.44,184.39,7.90371751]
[1755788703923,7.19371751,184.46,184.4,26.71]
[1755788704121,0.23,184.51,184.41,26.71]
[1755788704340,7.19371751,184.47,184.46,26.0]
[1755788704645,13.82559401,184.53,184.48,26.0]
[1755788704816,7.19371751,184.5,184.48,26.0]
[1755788705167,7.42371751,184.49,184.41,0.71]
[1755788705324,7.19371751,184.46,184.44,26.0]
[1755788705639,7.19371751,184.45,184.44,26.0]
[1755788705834,7.19371751,184.45,184.42,26.0]
[1755788706033,7.19371751,184.44,184.42,26.0]
[1755788706255,7.19371751,184.45,184.43,26.0]
[1755788706458,0.72,184.5,184.44,26.0]
[1755788706628,0.72,184.5,184.46,26.0]
[1755788706823,7.19371751,184.48,184.43,33.90371751]
[1755788707023,7.19371751,184.48,184.44,0.71]
[1755788707229,7.19371751,184.49,184.45,0.71]
[1755788707524,2.82220043,184.54,184.48,33.19371751]
[1755788707723,7.19371751,184.54,184.48,26.71]
[1755788708041,0.06,184.59,184.39,23.59559401]
[1755788708042,7.19371751,184.51,184.4,5.42285947]